[Event "Early-Titled-Tuesday-Blitz-April-23-2024"]
[Site "Chess.com"]
[Date "2024.04.23"]
[Round "3"]
[White "GrotBchess"]
[Black "NoVabbeSeiUnGenio"]
[Result "1/2-1/2"]
[WhiteElo "2468"]
[BlackElo "2634"]
[TimeControl "180+1"]
[EndTime "8:31:16 PDT"]
[Termination "Game drawn - insufficient material"]

1. e4 {[%clk 0:02:53.6]} 1... g6 {[%clk 0:03:00]} 2. d4 {[%clk 0:02:51.8]} 2...
Bg7 {[%clk 0:03:00.3]} 3. c3 {[%clk 0:02:51.4]} 3... Nf6 {[%clk 0:02:57.1]} 4.
Bd3 {[%clk 0:02:50.3]} 4... O-O {[%clk 0:02:55]} 5. Qe2 {[%clk 0:02:50.4]} 5...
c5 {[%clk 0:02:52.9]} 6. Nf3 {[%clk 0:02:49.2]} 6... d5 {[%clk 0:02:51.1]} 7. e5
{[%clk 0:02:46.7]} 7... Ne4 {[%clk 0:02:50.6]} 8. Bxe4 {[%clk 0:02:42.6]} 8...
dxe4 {[%clk 0:02:50.7]} 9. Qxe4 {[%clk 0:02:43.1]} 9... Bf5 {[%clk 0:02:50.8]}
10. Qe3 {[%clk 0:02:42.4]} 10... Nc6 {[%clk 0:02:48.2]} 11. O-O {[%clk
0:02:39.2]} 11... cxd4 {[%clk 0:02:46.8]} 12. cxd4 {[%clk 0:02:36.6]} 12... Nb4
{[%clk 0:02:44.5]} 13. Na3 {[%clk 0:02:31.8]} 13... Rc8 {[%clk 0:02:38.1]} 14.
Bd2 {[%clk 0:02:29.6]} 14... Nd5 {[%clk 0:02:30.3]} 15. Qe2 {[%clk 0:02:26.8]}
15... Qb6 {[%clk 0:02:27.6]} 16. Nc4 {[%clk 0:02:18.6]} 16... Qa6 {[%clk
0:02:23.5]} 17. Rfc1 {[%clk 0:02:11.8]} 17... Rfd8 {[%clk 0:02:06.8]} 18. h3
{[%clk 0:02:07.6]} 18... h6 {[%clk 0:01:54.6]} 19. Qf1 {[%clk 0:02:04.2]} 19...
Be6 {[%clk 0:01:50.5]} 20. Ne3 {[%clk 0:02:00.1]} 20... Qb6 {[%clk 0:01:50.4]}
21. Nc4 {[%clk 0:01:56.6]} 21... Qa6 {[%clk 0:01:50.2]} 22. Ne3 {[%clk
0:01:56.4]} 22... Rxc1 {[%clk 0:01:47]} 23. Qxc1 {[%clk 0:01:50.4]} 23... Rc8
{[%clk 0:01:43.2]} 24. Qd1 {[%clk 0:01:37]} 24... Qd3 {[%clk 0:01:33.9]} 25.
Nxd5 {[%clk 0:01:25.4]} 25... Bxd5 {[%clk 0:01:33.9]} 26. Bc3 {[%clk 0:01:25.3]}
26... Qf5 {[%clk 0:01:29.7]} 27. a3 {[%clk 0:01:22.2]} 27... h5 {[%clk
0:01:22.6]} 28. Qe2 {[%clk 0:01:13.8]} 28... g5 {[%clk 0:01:20]} 29. Nd2 {[%clk
0:01:07.1]} 29... Qg6 {[%clk 0:01:15.5]} 30. Nf1 {[%clk 0:01:03.3]} 30... b6
{[%clk 0:00:57.1]} 31. Ne3 {[%clk 0:00:59.5]} 31... Bb7 {[%clk 0:00:51.4]} 32.
Rd1 {[%clk 0:00:51.3]} 32... e6 {[%clk 0:00:43.4]} 33. d5 {[%clk 0:00:46.9]}
33... exd5 {[%clk 0:00:30.7]} 34. Nxd5 {[%clk 0:00:46]} 34... Re8 {[%clk
0:00:31.3]} 35. Qb5 {[%clk 0:00:35.8]} 35... Bc6 {[%clk 0:00:27.7]} 36. Qc4
{[%clk 0:00:30.4]} 36... Bxe5 {[%clk 0:00:21.6]} 37. Bxe5 {[%clk 0:00:26.2]}
37... Rxe5 {[%clk 0:00:21.5]} 38. Ne3 {[%clk 0:00:26.8]} 38... Qe4 {[%clk
0:00:19.6]} 39. Rd8+ {[%clk 0:00:24.2]} 39... Kg7 {[%clk 0:00:19.1]} 40. Qxe4
{[%clk 0:00:23.7]} 40... Bxe4 {[%clk 0:00:18.6]} 41. Rd7 {[%clk 0:00:22.6]}
41... a5 {[%clk 0:00:17.6]} 42. Rd6 {[%clk 0:00:21.7]} 42... b5 {[%clk
0:00:17.4]} 43. Rb6 {[%clk 0:00:19.4]} 43... Rc5 {[%clk 0:00:17]} 44. Kf1 {[%clk
0:00:17.5]} 44... Rc1+ {[%clk 0:00:13.8]} 45. Ke2 {[%clk 0:00:17.9]} 45... Rc5
{[%clk 0:00:13]} 46. f3 {[%clk 0:00:17.4]} 46... Bg6 {[%clk 0:00:13.1]} 47. g3
{[%clk 0:00:15.8]} 47... f6 {[%clk 0:00:12.2]} 48. b4 {[%clk 0:00:15.6]} 48...
axb4 {[%clk 0:00:12.1]} 49. axb4 {[%clk 0:00:16.5]} 49... Rc3 {[%clk 0:00:12.4]}
50. Rxb5 {[%clk 0:00:15.8]} 50... Bd3+ {[%clk 0:00:12.4]} 51. Kd2 {[%clk
0:00:15.5]} 51... Rb3 {[%clk 0:00:12.3]} 52. Rd5 {[%clk 0:00:14.5]} 52... Bg6
{[%clk 0:00:11.9]} 53. Rd7+ {[%clk 0:00:14.4]} 53... Bf7 {[%clk 0:00:12.1]} 54.
Rd4 {[%clk 0:00:14.3]} 54... Rb2+ {[%clk 0:00:11.9]} 55. Kc3 {[%clk 0:00:14.5]}
55... Rb3+ {[%clk 0:00:12.5]} 56. Kd2 {[%clk 0:00:13.8]} 56... Kf8 {[%clk
0:00:13]} 57. h4 {[%clk 0:00:13]} 57... gxh4 {[%clk 0:00:12.5]} 58. Rxh4 {[%clk
0:00:12.5]} 58... Rb2+ {[%clk 0:00:12.8]} 59. Kc3 {[%clk 0:00:12.1]} 59... Rb3+
{[%clk 0:00:13.5]} 60. Kd2 {[%clk 0:00:12.4]} 60... Rb2+ {[%clk 0:00:14.1]} 61.
Kc3 {[%clk 0:00:12.6]} 61... Rf2 {[%clk 0:00:13.3]} 62. Rf4 {[%clk 0:00:11.5]}
62... Ra2 {[%clk 0:00:11.6]} 63. Rxf6 {[%clk 0:00:10.5]} 63... Ke7 {[%clk
0:00:10.6]} 64. Rf4 {[%clk 0:00:10]} 64... Ra3+ {[%clk 0:00:11.1]} 65. Kd4
{[%clk 0:00:10.1]} 65... Rb3 {[%clk 0:00:10.9]} 66. Nd5+ {[%clk 0:00:10]} 66...
Kf8 {[%clk 0:00:10.4]} 67. Ke5 {[%clk 0:00:09.9]} 67... Kg7 {[%clk 0:00:09.2]}
68. Nb6 {[%clk 0:00:07.1]} 68... Re3+ {[%clk 0:00:08.6]} 69. Kd6 {[%clk
0:00:07.3]} 69... Re6+ {[%clk 0:00:08.5]} 70. Kc5 {[%clk 0:00:07.3]} 70... Re5+
{[%clk 0:00:09.1]} 71. Kd4 {[%clk 0:00:07]} 71... Rb5 {[%clk 0:00:09.4]} 72. Nc4
{[%clk 0:00:05.2]} 72... Rxb4 {[%clk 0:00:09.4]} 73. Kc5 {[%clk 0:00:05.8]}
73... Rb1 {[%clk 0:00:09.3]} 74. Ne5 {[%clk 0:00:05.9]} 74... Rc1+ {[%clk
0:00:09.6]} 75. Kd6 {[%clk 0:00:05.8]} 75... Be8 {[%clk 0:00:09.1]} 76. Ke7
{[%clk 0:00:05.8]} 76... Bb5 {[%clk 0:00:08.8]} 77. Kd6 {[%clk 0:00:05.8]} 77...
Be8 {[%clk 0:00:08.7]} 78. Ke7 {[%clk 0:00:05.9]} 78... Bg6 {[%clk 0:00:08.9]}
79. Kd6 {[%clk 0:00:06.4]} 79... Rd1+ {[%clk 0:00:08.8]} 80. Ke7 {[%clk
0:00:06]} 80... Re1 {[%clk 0:00:09.4]} 81. Kd6 {[%clk 0:00:06.2]} 81... Be8
{[%clk 0:00:07.7]} 82. Re4 {[%clk 0:00:05.1]} 82... Rd1+ {[%clk 0:00:07.1]} 83.
Ke7 {[%clk 0:00:04.8]} 83... Bg6 {[%clk 0:00:07.5]} 84. Nxg6 {[%clk 0:00:04.3]}
84... Kxg6 {[%clk 0:00:08.4]} 85. Ke6 {[%clk 0:00:04.7]} 85... Ra1 {[%clk
0:00:08]} 86. Rf4 {[%clk 0:00:05.1]} 86... Ra2 {[%clk 0:00:08.2]} 87. Ke5 {[%clk
0:00:05.7]} 87... Ra5+ {[%clk 0:00:08.4]} 88. Ke4 {[%clk 0:00:05.7]} 88... Ra3
{[%clk 0:00:09.3]} 89. Kd4 {[%clk 0:00:05.3]} 89... Rb3 {[%clk 0:00:09.6]} 90.
Ke5 {[%clk 0:00:05.7]} 90... Kg5 {[%clk 0:00:09.8]} 91. Ke4 {[%clk 0:00:06]}
91... Rb4+ {[%clk 0:00:09.6]} 92. Ke5 {[%clk 0:00:06.1]} 92... Rxf4 {[%clk
0:00:08.1]} 93. gxf4+ {[%clk 0:00:06.7]} 93... Kg6 {[%clk 0:00:08.7]} 94. f5+
{[%clk 0:00:06.9]} 94... Kf7 {[%clk 0:00:08.9]} 95. Kf4 {[%clk 0:00:06.2]} 95...
Kf6 {[%clk 0:00:09.4]} 96. Kg3 {[%clk 0:00:06.5]} 96... Kxf5 {[%clk 0:00:10]}
97. Kh4 {[%clk 0:00:07.2]} 97... Kf4 {[%clk 0:00:10.4]} 98. Kxh5 {[%clk
0:00:07.2]} 98... Kxf3 {[%clk 0:00:10.3]} 1/2-1/2

[Event "Early-Titled-Tuesday-Blitz-April-23-2024"]
[Site "Chess.com"]
[Date "2024.04.23"]
[Round "3"]
[White "ChessboArt"]
[Black "tomesao"]
[Result "1-0"]
[WhiteElo "2325"]
[BlackElo "2502"]
[TimeControl "180+1"]
[EndTime "8:32:22 PDT"]
[Termination "ChessboArt won by resignation"]

1. Nf3 {[%clk 0:03:00.9]} 1... d5 {[%clk 0:02:55.6]} 2. g3 {[%clk 0:02:58.7]}
2... Nf6 {[%clk 0:02:54.9]} 3. Bg2 {[%clk 0:02:58.9]} 3... c6 {[%clk 0:02:54.8]}
4. b3 {[%clk 0:02:59]} 4... Bg4 {[%clk 0:02:54.8]} 5. Bb2 {[%clk 0:02:59.2]}
5... e6 {[%clk 0:02:55.2]} 6. d3 {[%clk 0:02:59.3]} 6... Nbd7 {[%clk 0:02:55.3]}
7. Nbd2 {[%clk 0:02:59.4]} 7... Be7 {[%clk 0:02:54.2]} 8. O-O {[%clk 0:02:59.1]}
8... O-O {[%clk 0:02:54.2]} 9. c4 {[%clk 0:02:58.1]} 9... h6 {[%clk 0:02:54.2]}
10. Qc2 {[%clk 0:02:56.7]} 10... a5 {[%clk 0:02:54.4]} 11. a3 {[%clk 0:02:56.4]}
11... Rc8 {[%clk 0:02:51.9]} 12. Rfe1 {[%clk 0:02:56.1]} 12... Re8 {[%clk
0:02:51.9]} 13. Bc3 {[%clk 0:02:51.7]} 13... c5 {[%clk 0:02:39.2]} 14. e3 {[%clk
0:02:33.8]} 14... Bd6 {[%clk 0:02:29.3]} 15. Qb2 {[%clk 0:02:27.6]} 15... Qb6
{[%clk 0:02:21.9]} 16. Rab1 {[%clk 0:02:14]} 16... Bh5 {[%clk 0:02:21]} 17. b4
{[%clk 0:02:09]} 17... cxb4 {[%clk 0:02:05.6]} 18. axb4 {[%clk 0:02:09.9]} 18...
axb4 {[%clk 0:02:05.8]} 19. Bxb4 {[%clk 0:02:09]} 19... Bxb4 {[%clk 0:02:06]}
20. Qxb4 {[%clk 0:02:09.9]} 20... Qxb4 {[%clk 0:02:06.5]} 21. Rxb4 {[%clk
0:02:09.5]} 21... Nc5 {[%clk 0:02:07.4]} 22. Ne5 {[%clk 0:02:01]} 22... dxc4
{[%clk 0:02:07.5]} 23. Ndxc4 {[%clk 0:01:55.9]} 23... Rc7 {[%clk 0:01:49]} 24.
d4 {[%clk 0:01:54.4]} 24... Nce4 {[%clk 0:01:48.8]} 25. Reb1 {[%clk 0:01:35.8]}
25... Ra8 {[%clk 0:01:40]} 26. h3 {[%clk 0:01:03.6]} 26... Be2 {[%clk
0:01:18.1]} 27. Rxb7 {[%clk 0:00:54.2]} 27... Rxb7 {[%clk 0:01:15.4]} 28. Rxb7
{[%clk 0:00:53.3]} 28... Ra1+ {[%clk 0:01:15.1]} 29. Kh2 {[%clk 0:00:52.9]}
29... Nxf2 {[%clk 0:01:13.3]} 30. Nd6 {[%clk 0:00:38.5]} 30... Nd5 {[%clk
0:00:24.1]} 31. Ndxf7 {[%clk 0:00:34.5]} 31... Ra8 {[%clk 0:00:21.5]} 32. Nd6
{[%clk 0:00:17.9]} 32... Nd3 {[%clk 0:00:11]} 33. Nxd3 {[%clk 0:00:16.4]} 33...
Bxd3 {[%clk 0:00:10.7]} 34. e4 {[%clk 0:00:11]} 34... Ne3 {[%clk 0:00:07.6]} 35.
Bf3 {[%clk 0:00:11.5]} 35... Ra2+ {[%clk 0:00:07]} 36. Kg1 {[%clk 0:00:11.7]}
36... Nc4 {[%clk 0:00:05.1]} 37. Nxc4 {[%clk 0:00:11.1]} 37... Bxc4 {[%clk
0:00:05.4]} 38. d5 {[%clk 0:00:11.4]} 38... Ra3 {[%clk 0:00:05.1]} 39. Kf2
{[%clk 0:00:10.6]} 39... Ra2+ {[%clk 0:00:05.1]} 40. Ke3 {[%clk 0:00:10.7]}
40... Ra3+ {[%clk 0:00:05.4]} 41. Kd4 {[%clk 0:00:11]} 41... Ba2 {[%clk
0:00:03.7]} 42. Bg4 {[%clk 0:00:09.4]} 42... exd5 {[%clk 0:00:03.9]} 43. exd5
{[%clk 0:00:09.7]} 43... Ra4+ {[%clk 0:00:03.9]} 44. Ke5 {[%clk 0:00:09.3]}
44... Ra5 {[%clk 0:00:04.1]} 45. Be6+ {[%clk 0:00:09.2]} 45... Kf8 {[%clk
0:00:03.7]} 46. Rb8+ {[%clk 0:00:09.3]} 46... Ke7 {[%clk 0:00:03.9]} 47. Rg8
{[%clk 0:00:10]} 47... g5 {[%clk 0:00:03.7]} 48. Rg7+ {[%clk 0:00:10.3]} 48...
Kf8 {[%clk 0:00:03.9]} 49. Rh7 {[%clk 0:00:10.3]} 49... Ke8 {[%clk 0:00:03.6]}
50. Rxh6 {[%clk 0:00:10.4]} 50... Ra3 {[%clk 0:00:04.1]} 51. Rh8+ {[%clk
0:00:08.5]} 51... Ke7 {[%clk 0:00:03.7]} 52. Rh7+ {[%clk 0:00:09.4]} 52... Kf8
{[%clk 0:00:03.7]} 53. Rh8+ {[%clk 0:00:09.8]} 53... Kg7 {[%clk 0:00:04]} 54.
Rg8+ {[%clk 0:00:10.2]} 54... Kh7 {[%clk 0:00:03.8]} 55. Rxg5 {[%clk 0:00:08.1]}
55... Re3+ {[%clk 0:00:03.5]} 56. Kd6 {[%clk 0:00:08.3]} 56... Re2 {[%clk
0:00:03.8]} 57. h4 {[%clk 0:00:08.8]} 57... Rd2 {[%clk 0:00:04]} 58. Ke7 {[%clk
0:00:09.2]} 58... Kh6 {[%clk 0:00:04.3]} 59. d6 {[%clk 0:00:09]} 59... Re2
{[%clk 0:00:03.8]} 60. d7 {[%clk 0:00:05.4]} 60... Rxe6+ {[%clk 0:00:04]} 61.
Kd8 {[%clk 0:00:06]} 61... Re2 {[%clk 0:00:03.6]} 62. Kc8 {[%clk 0:00:05.9]}
62... Be6 {[%clk 0:00:03.5]} 63. Rc5 {[%clk 0:00:04]} 63... Rd2 {[%clk
0:00:03.3]} 64. Rc7 {[%clk 0:00:03.1]} 64... Kh5 {[%clk 0:00:02.1]} 65. Kd8
{[%clk 0:00:03.8]} 65... Bxd7 {[%clk 0:00:01.4]} 66. Rxd7 {[%clk 0:00:03.8]}
66... Rg2 {[%clk 0:00:01.6]} 67. Rg7 {[%clk 0:00:03.4]} 67... Kh6 {[%clk
0:00:01.8]} 68. Rg5 {[%clk 0:00:03]} 68... Rd2+ {[%clk 0:00:02.2]} 69. Ke7
{[%clk 0:00:03.5]} 69... Re2+ {[%clk 0:00:02.7]} 70. Kf6 {[%clk 0:00:03.1]}
70... Rf2+ {[%clk 0:00:03.2]} 71. Ke5 {[%clk 0:00:02.7]} 71... Rf8 {[%clk
0:00:03.1]} 72. Ke4 {[%clk 0:00:03.6]} 72... Rf7 {[%clk 0:00:03.2]} 73. Rg4
{[%clk 0:00:03.9]} 73... Rf8 {[%clk 0:00:03.4]} 74. Rf4 {[%clk 0:00:04.3]} 74...
Rg8 {[%clk 0:00:02.9]} 75. Kf3 {[%clk 0:00:04.6]} 75... Kh5 {[%clk 0:00:03.5]}
76. Rf5+ {[%clk 0:00:04.5]} 76... Kh6 {[%clk 0:00:03.7]} 77. Kf4 {[%clk
0:00:04.7]} 77... Rb8 {[%clk 0:00:04]} 78. Kg4 {[%clk 0:00:05.1]} 78... Rb4+
{[%clk 0:00:04]} 79. Rf4 {[%clk 0:00:05.7]} 79... Rb5 {[%clk 0:00:04.2]} 80.
Rf6+ {[%clk 0:00:05.8]} 80... Kg7 {[%clk 0:00:04.2]} 81. Rc6 {[%clk 0:00:06.3]}
81... Rb4+ {[%clk 0:00:04.2]} 82. Kh5 {[%clk 0:00:06.5]} 82... Kh7 {[%clk
0:00:04.6]} 83. g4 {[%clk 0:00:06.2]} 83... Rb7 {[%clk 0:00:05]} 84. g5 {[%clk
0:00:06.6]} 84... Kg7 {[%clk 0:00:05.5]} 85. Rd6 {[%clk 0:00:06.5]} 85... Kh7
{[%clk 0:00:05.8]} 86. Rh6+ {[%clk 0:00:05.1]} 86... Kg7 {[%clk 0:00:06.1]} 87.
Rc6 {[%clk 0:00:04.7]} 87... Kh7 {[%clk 0:00:06.4]} 88. Rc4 {[%clk 0:00:04.2]}
88... Kg7 {[%clk 0:00:06.6]} 89. Kg4 {[%clk 0:00:04.8]} 89... Rb2 {[%clk
0:00:05.8]} 90. h5 {[%clk 0:00:05]} 90... Rg2+ {[%clk 0:00:06.1]} 91. Kf5 {[%clk
0:00:05.6]} 91... Rf2+ {[%clk 0:00:06.5]} 92. Rf4 {[%clk 0:00:06.1]} 92... Rh2
{[%clk 0:00:05.7]} 93. h6+ {[%clk 0:00:06.1]} 93... Kh7 {[%clk 0:00:06.2]} 94.
Kf6 {[%clk 0:00:06.4]} 94... Ra2 {[%clk 0:00:06.4]} 95. Rc4 {[%clk 0:00:05.6]}
95... Ra6+ {[%clk 0:00:06.4]} 96. Kf5 {[%clk 0:00:05.1]} 96... Ra5+ {[%clk
0:00:06.7]} 97. Kg4 {[%clk 0:00:05.1]} 97... Kg6 {[%clk 0:00:06.4]} 98. Rc6+
{[%clk 0:00:04.8]} 98... Kh7 {[%clk 0:00:06.9]} 99. Kh5 {[%clk 0:00:04.8]} 99...
Rb5 {[%clk 0:00:05.9]} 100. Rc7+ {[%clk 0:00:04.8]} 100... Kh8 {[%clk 0:00:06]}
101. Kg6 {[%clk 0:00:02.5]} 101... Rb6+ {[%clk 0:00:05.9]} 102. Kf5 {[%clk
0:00:03.4]} 102... Rb5+ {[%clk 0:00:06.1]} 103. Kg4 {[%clk 0:00:04.1]} 103...
Ra5 {[%clk 0:00:05.5]} 104. Kh5 {[%clk 0:00:04.5]} 104... Rb5 {[%clk 0:00:05.7]}
105. Rf7 {[%clk 0:00:05.1]} 105... Ra5 {[%clk 0:00:05.5]} 106. Rf8+ {[%clk
0:00:05.2]} 106... Kh7 {[%clk 0:00:05.4]} 107. Rf6 {[%clk 0:00:05.8]} 107... Kh8
{[%clk 0:00:04.8]} 108. Rb6 {[%clk 0:00:06.4]} 108... Rc5 {[%clk 0:00:04.8]}
109. Kg6 {[%clk 0:00:07]} 109... Rc8 {[%clk 0:00:04]} 110. Rd6 {[%clk
0:00:07.3]} 110... Rg8+ {[%clk 0:00:04]} 111. Kf6 {[%clk 0:00:07.7]} 111... Rf8+
{[%clk 0:00:04.4]} 112. Ke7 {[%clk 0:00:08]} 112... Rf5 {[%clk 0:00:04.4]} 113.
g6 {[%clk 0:00:08.3]} 113... Re5+ {[%clk 0:00:04.8]} 114. Kf6 {[%clk 0:00:08.2]}
114... Re8 {[%clk 0:00:05.2]} 115. Rd7 {[%clk 0:00:08.3]} 115... Ra8 {[%clk
0:00:04.1]} 116. g7+ {[%clk 0:00:07.5]} 116... Kh7 {[%clk 0:00:03.8]} 117. Kf7
{[%clk 0:00:08.1]} 117... Rb8 {[%clk 0:00:02.9]} 118. Re7 {[%clk 0:00:08.5]}
118... Rc8 {[%clk 0:00:03.1]} 119. Re8 {[%clk 0:00:08.9]} 119... Rc7+ {[%clk
0:00:02.9]} 120. Kf8 {[%clk 0:00:09.1]} 120... Rf7+ {[%clk 0:00:02.7]} 121. Kxf7
{[%clk 0:00:08.1]} 121... Kxh6 {[%clk 0:00:03.2]} 122. g8=Q {[%clk 0:00:09]} 1-0

[Event "Early-Titled-Tuesday-Blitz-April-23-2024"]
[Site "Chess.com"]
[Date "2024.04.23"]
[Round "4"]
[White "mr65"]
[Black "jinxy2009"]
[Result "0-1"]
[WhiteElo "1959"]
[BlackElo "2300"]
[TimeControl "180+1"]
[EndTime "8:33:49 PDT"]
[Termination "jinxy2009 won by resignation"]

1. e4 {[%clk 0:03:00.9]} 1... e5 {[%clk 0:02:53.1]} 2. d4 {[%clk 0:03:00]} 2...
exd4 {[%clk 0:02:52.8]} 3. c3 {[%clk 0:03:00.1]} 3... d5 {[%clk 0:02:52.3]} 4.
exd5 {[%clk 0:02:59.1]} 4... Qxd5 {[%clk 0:02:52.1]} 5. cxd4 {[%clk 0:02:58.7]}
5... Nc6 {[%clk 0:02:50.6]} 6. Nf3 {[%clk 0:02:58.7]} 6... Bg4 {[%clk
0:02:49.7]} 7. Be2 {[%clk 0:02:58.8]} 7... Bb4+ {[%clk 0:02:49.6]} 8. Nc3 {[%clk
0:02:57.5]} 8... Bxf3 {[%clk 0:02:49.6]} 9. Bxf3 {[%clk 0:02:56.6]} 9... Qc4
{[%clk 0:02:49.5]} 10. Qe2+ {[%clk 0:02:48.6]} 10... Qxe2+ {[%clk 0:02:44.4]}
11. Kxe2 {[%clk 0:02:45.1]} 11... Nxd4+ {[%clk 0:02:43.6]} 12. Ke3 {[%clk
0:02:45.2]} 12... Nc2+ {[%clk 0:02:40.8]} 0-1

[Event "Early-Titled-Tuesday-Blitz-April-23-2024"]
[Site "Chess.com"]
[Date "2024.04.23"]
[Round "4"]
[White "MikeSailer"]
[Black "kidagent"]
[Result "0-1"]
[WhiteElo "2166"]
[BlackElo "2340"]
[TimeControl "180+1"]
[EndTime "8:34:19 PDT"]
[Termination "kidagent won by resignation"]

1. b4 {[%clk 0:02:58.8]} 1... d5 {[%clk 0:02:59.1]} 2. Bb2 {[%clk 0:02:58.7]}
2... Bf5 {[%clk 0:02:53.1]} 3. Nf3 {[%clk 0:02:58.1]} 3... e6 {[%clk 0:02:52.1]}
4. g3 {[%clk 0:02:57.9]} 4... Nf6 {[%clk 0:02:52.1]} 5. a3 {[%clk 0:02:57.8]}
5... c5 {[%clk 0:02:50.1]} 6. bxc5 {[%clk 0:02:57.1]} 6... Bxc5 {[%clk
0:02:49.7]} 7. Bg2 {[%clk 0:02:56.8]} 7... Qb6 {[%clk 0:02:47.6]} 8. O-O {[%clk
0:02:56.4]} 8... Qxb2 {[%clk 0:02:46.7]} 9. Nc3 {[%clk 0:02:51.4]} 9... Qb6
{[%clk 0:02:45.1]} 10. Na4 {[%clk 0:02:50.8]} 10... Qc7 {[%clk 0:02:44.6]} 11.
Rb1 {[%clk 0:02:50.3]} 11... b6 {[%clk 0:02:42]} 12. Nh4 {[%clk 0:02:35.8]}
12... Bxc2 {[%clk 0:02:34]} 13. Qc1 {[%clk 0:02:31.8]} 13... Bxa4 {[%clk
0:02:33.1]} 0-1

[Event "Early-Titled-Tuesday-Blitz-April-23-2024"]
[Site "Chess.com"]
[Date "2024.04.23"]
[Round "4"]
[White "kekic76"]
[Black "tomesao"]
[Result "1-0"]
[WhiteElo "2349"]
[BlackElo "2491"]
[TimeControl "180+1"]
[EndTime "8:34:33 PDT"]
[Termination "kekic76 won by resignation"]

1. d4 {[%clk 0:02:54.5]} 1... d5 {[%clk 0:02:36]} 2. c4 {[%clk 0:02:53.6]} 2...
c6 {[%clk 0:02:36.1]} 3. cxd5 {[%clk 0:02:52.4]} 3... cxd5 {[%clk 0:02:35.9]} 4.
Nc3 {[%clk 0:02:52.9]} 4... Nc6 {[%clk 0:02:36]} 5. Nf3 {[%clk 0:02:53.3]} 5...
Nf6 {[%clk 0:02:36.1]} 6. Bf4 {[%clk 0:02:51]} 6... a6 {[%clk 0:02:22.7]} 7. e3
{[%clk 0:02:49.4]} 7... Bf5 {[%clk 0:02:19]} 8. Bd3 {[%clk 0:02:47.6]} 8... Bxd3
{[%clk 0:02:18.6]} 9. Qxd3 {[%clk 0:02:48.5]} 9... e6 {[%clk 0:02:18.8]} 10. O-O
{[%clk 0:02:48.5]} 10... Bd6 {[%clk 0:02:18]} 11. Bxd6 {[%clk 0:02:48.9]} 11...
Qxd6 {[%clk 0:02:17.9]} 12. a3 {[%clk 0:02:48.7]} 12... O-O {[%clk 0:02:16.7]}
13. b4 {[%clk 0:02:48.4]} 13... Rfc8 {[%clk 0:02:15.4]} 14. Na4 {[%clk
0:02:48.5]} 14... b5 {[%clk 0:02:10.8]} 15. Nb6 {[%clk 0:02:48.4]} 15... Nxb4
{[%clk 0:02:10.7]} 16. Nxc8 {[%clk 0:02:41.9]} 1-0

[Event "Early-Titled-Tuesday-Blitz-April-23-2024"]
[Site "Chess.com"]
[Date "2024.04.23"]
[Round "4"]
[White "Smoking_Crow"]
[Black "SHIVACalypso"]
[Result "0-1"]
[WhiteElo "2638"]
[BlackElo "2449"]
[TimeControl "180+1"]
[EndTime "8:34:59 PDT"]
[Termination "SHIVACalypso won by resignation"]

1. c4 {[%clk 0:03:00.9]} 1... c5 {[%clk 0:02:57.9]} 2. Nc3 {[%clk 0:03:00]} 2...
g6 {[%clk 0:02:58.2]} 3. Nf3 {[%clk 0:02:59.5]} 3... Nc6 {[%clk 0:02:58.2]} 4.
g3 {[%clk 0:02:58.9]} 4... Bg7 {[%clk 0:02:58.2]} 5. Bg2 {[%clk 0:02:59.1]} 5...
e6 {[%clk 0:02:58.8]} 6. O-O {[%clk 0:02:58.6]} 6... Nge7 {[%clk 0:02:59.2]} 7.
e3 {[%clk 0:02:56.9]} 7... O-O {[%clk 0:02:58.3]} 8. d4 {[%clk 0:02:57]} 8...
cxd4 {[%clk 0:02:57.5]} 9. exd4 {[%clk 0:02:57.9]} 9... d5 {[%clk 0:02:58.2]}
10. c5 {[%clk 0:02:58]} 10... Nf5 {[%clk 0:02:54.9]} 11. Ne2 {[%clk 0:02:57.9]}
11... b6 {[%clk 0:02:51.1]} 12. cxb6 {[%clk 0:02:55.7]} 12... Qxb6 {[%clk
0:02:50.3]} 13. b3 {[%clk 0:02:47.2]} 13... Nfxd4 {[%clk 0:02:45.1]} 14. Nexd4
{[%clk 0:02:48.1]} 14... Nxd4 {[%clk 0:02:46]} 15. Nxd4 {[%clk 0:02:49]} 15...
Bxd4 {[%clk 0:02:45.3]} 16. Bh6 {[%clk 0:02:48.2]} 16... Ba6 {[%clk 0:02:40.8]}
17. Bxf8 {[%clk 0:02:43.8]} 17... Bxf1 {[%clk 0:02:37]} 18. Bxf1 {[%clk
0:02:35.8]} 18... Bxa1 {[%clk 0:02:33.7]} 19. Qxa1 {[%clk 0:02:35.1]} 19... Rxf8
{[%clk 0:02:33]} 20. h4 {[%clk 0:02:32.8]} 20... d4 {[%clk 0:02:32.2]} 21. Bd3
{[%clk 0:02:32]} 21... Rd8 {[%clk 0:02:32.5]} 22. Qd1 {[%clk 0:02:31.7]} 22...
Qc5 {[%clk 0:02:29.6]} 23. Kh2 {[%clk 0:02:30.1]} 23... Qe5 {[%clk 0:02:25.4]}
24. Qf3 {[%clk 0:02:28.9]} 24... Rc8 {[%clk 0:02:23]} 0-1

[Event "Early-Titled-Tuesday-Blitz-April-23-2024"]
[Site "Chess.com"]
[Date "2024.04.23"]
[Round "4"]
[White "whiteglovethief"]
[Black "A4RookA3"]
[Result "1-0"]
[WhiteElo "2589"]
[BlackElo "2379"]
[TimeControl "180+1"]
[EndTime "8:35:51 PDT"]
[Termination "whiteglovethief won by resignation"]

1. d4 {[%clk 0:02:19.1]} 1... d5 {[%clk 0:02:52.8]} 2. c4 {[%clk 0:02:17.1]}
2... e6 {[%clk 0:02:52.2]} 3. Nf3 {[%clk 0:02:15.3]} 3... a6 {[%clk 0:02:49.7]}
4. Bg5 {[%clk 0:02:11.6]} 4... Be7 {[%clk 0:02:42.2]} 5. Bxe7 {[%clk 0:02:11.3]}
5... Qxe7 {[%clk 0:02:42.6]} 6. Nbd2 {[%clk 0:02:07.8]} 6... Nf6 {[%clk
0:02:35.3]} 7. g3 {[%clk 0:02:05.4]} 7... b6 {[%clk 0:02:35.4]} 8. Bg2 {[%clk
0:02:05.7]} 8... Bb7 {[%clk 0:02:35.4]} 9. O-O {[%clk 0:02:06.3]} 9... c5 {[%clk
0:02:33.5]} 10. cxd5 {[%clk 0:02:05.2]} 10... exd5 {[%clk 0:02:34.4]} 11. dxc5
{[%clk 0:02:04.5]} 11... bxc5 {[%clk 0:02:35.3]} 12. Nb3 {[%clk 0:01:55.4]}
12... Qc7 {[%clk 0:01:59.7]} 13. Rc1 {[%clk 0:01:54.1]} 13... Nbd7 {[%clk
0:01:59.9]} 14. Nxc5 {[%clk 0:01:52.2]} 14... Nxc5 {[%clk 0:01:58.3]} 15. b4
{[%clk 0:01:52.7]} 15... Nfe4 {[%clk 0:01:56.5]} 16. bxc5 {[%clk 0:01:50.3]}
16... Nxc5 {[%clk 0:01:57.4]} 17. Qd4 {[%clk 0:01:46]} 17... Rc8 {[%clk
0:01:55.3]} 18. Qxg7 {[%clk 0:01:43.8]} 1-0

[Event "Early-Titled-Tuesday-Blitz-April-23-2024"]
[Site "Chess.com"]
[Date "2024.04.23"]
[Round "4"]
[White "Skatchkov_V"]
[Black "YouShallNotPass001"]
[Result "1-0"]
[WhiteElo "2665"]
[BlackElo "2434"]
[TimeControl "180+1"]
[EndTime "8:36:11 PDT"]
[Termination "Skatchkov_V won by resignation"]

1. d4 {[%clk 0:03:00.9]} 1... Nf6 {[%clk 0:03:00.9]} 2. c4 {[%clk 0:03:00.5]}
2... e6 {[%clk 0:02:54.6]} 3. Nf3 {[%clk 0:03:00.1]} 3... d5 {[%clk 0:02:50.9]}
4. g3 {[%clk 0:02:59.8]} 4... a6 {[%clk 0:02:41.2]} 5. Bg2 {[%clk 0:02:58.1]}
5... dxc4 {[%clk 0:02:41.1]} 6. Ne5 {[%clk 0:02:58.6]} 6... Ra7 {[%clk
0:02:34.8]} 7. a4 {[%clk 0:02:56]} 7... c5 {[%clk 0:02:27.3]} 8. Nxc4 {[%clk
0:02:23]} 8... Qxd4 {[%clk 0:02:24.7]} 9. Qc2 {[%clk 0:02:19.5]} 9... Nc6 {[%clk
0:02:00]} 10. O-O {[%clk 0:02:18.1]} 10... Nb4 {[%clk 0:01:45.4]} 11. Qb3 {[%clk
0:02:17.1]} 11... Be7 {[%clk 0:01:35.5]} 12. Rd1 {[%clk 0:02:04.9]} 12... Qg4
{[%clk 0:01:29.4]} 13. Nc3 {[%clk 0:02:04]} 13... O-O {[%clk 0:01:27.3]} 14. Be3
{[%clk 0:01:59.6]} 14... Bd7 {[%clk 0:01:23.1]} 15. Ne5 {[%clk 0:01:59.7]} 1-0